[Event "Ruzomberok Closed 2020 - 3. turnaj"]
[Site "Ruzomberok, Slovakia"]
[Date "2020.09.05"]
[Round "1.5"]
[White "Caban, Lubor"]
[Black "Jurky, Marian"]
[Result "1-0"]
[TimeControl "10m + 5s"]
[WhiteElo "1668"]
[BlackElo "1347"]

1. e4 {[%clk 00:10:04]} {[%emt 00:00:06]} c5 {[%clk 00:10:03]} {[%emt
00:00:08]} 2. Nf3 {[%clk 00:10:07]} {[%emt 00:00:02]} d6 {[%clk 00:10:06]}
{[%emt 00:00:02]} 3. Nc3 {[%clk 00:10:10]} {[%emt 00:00:02]} Nc6 {[%clk
00:10:05]} {[%emt 00:00:06]} 4. Bb5 {[%clk 00:10:13]} {[%emt 00:00:02]} Bd7
{[%clk 00:10:07]} {[%emt 00:00:03]} 5. d3 {[%clk 00:10:11]} {[%emt 00:00:07]}
Nf6 {[%clk 00:09:47]} {[%emt 00:00:24]} 6. Bg5 {[%clk 00:10:15]} {[%emt
00:00:02]} e6 {[%clk 00:09:49]} {[%emt 00:00:03]} 7. O-O {[%clk 00:09:49]}
{[%emt 00:00:31]} Be7 {[%clk 00:09:48]} {[%emt 00:00:05]} 8. d4 {[%clk
00:09:46]} {[%emt 00:00:08]} cxd4 {[%clk 00:08:45]} {[%emt 00:01:08]} 9. Nxd4
{[%clk 00:09:19]} {[%emt 00:00:32]} Nxd4 {[%clk 00:07:45]} {[%emt 00:01:05]} 10.
Qxd4 {[%clk 00:09:20]} {[%emt 00:00:04]} Bxb5 {[%clk 00:06:49]} {[%emt
00:01:02]} 11. Nxb5 {[%clk 00:09:22]} {[%emt 00:00:02]} a6 {[%clk 00:06:50]}
{[%emt 00:00:05]} 12. Bxf6 {[%clk 00:08:56]} {[%emt 00:00:31]} Bxf6 {[%clk
00:06:13]} {[%emt 00:00:42]} 13. Nxd6+ {[%clk 00:08:59]} {[%emt 00:00:02]} Ke7
{[%clk 00:05:06]} {[%emt 00:01:12]} 14. e5 {[%clk 00:08:52]} {[%emt 00:00:12]}
Bxe5 {[%clk 00:04:04]} {[%emt 00:01:07]} 15. Qxe5 {[%clk 00:07:30]} {[%emt
00:01:27]} Qxd6 {[%clk 00:03:30]} {[%emt 00:00:39]} 16. Qxg7 {[%clk 00:07:16]}
{[%emt 00:00:20]} Rhg8 {[%clk 00:01:53]} {[%emt 00:01:41]} 17. Qh6 {[%clk
00:07:14]} {[%emt 00:00:05]} Rg6 {[%clk 00:01:09]} {[%emt 00:00:51]} 18. Qh4+
{[%clk 00:07:16]} {[%emt 00:00:03]} Kf8 {[%clk 00:00:20]} {[%emt 00:00:53]} 19.
a3 {[%clk 00:07:18]} {[%emt 00:00:04]} Kg7 {[%clk 00:00:13]} {[%emt 00:00:12]}
20. Rad1 {[%clk 00:07:18]} {[%emt 00:00:05]} Qe5 {[%clk 00:00:08]} {[%emt
00:00:10]} 21. Qd4 {[%clk 00:07:17]} {[%emt 00:00:05]} Qxd4 {[%clk 00:00:11]}
{[%emt 00:00:03]} 22. Rxd4 {[%clk 00:07:21]} {[%emt 00:00:01]} b5 {[%clk
00:00:08]} {[%emt 00:00:09]} 23. Rd7 {[%clk 00:07:24]} {[%emt 00:00:02]} h5
{[%clk 00:00:11]} {[%emt 00:00:02]} 24. c3 {[%clk 00:07:28]} {[%emt 00:00:01]}
Kh6 {[%clk 00:00:14]} {[%emt 00:00:01]} 25. Rfd1 {[%clk 00:07:31]} {[%emt
00:00:02]} f6 {[%clk 00:00:09]} {[%emt 00:00:10]} 26. Rf7 {[%clk 00:07:31]}
{[%emt 00:00:05]} Rag8 {[%clk 00:00:12]} {[%emt 00:00:03]} 27. g3 {[%clk
00:07:34]} {[%emt 00:00:02]} h4 {[%clk 00:00:16]} 28. Rd4 {[%clk 00:07:36]}
{[%emt 00:00:03]} hxg3 {[%clk 00:00:11]} {[%emt 00:00:10]} 29. hxg3 {[%clk
00:07:39]} {[%emt 00:00:01]} R8g7 {[%clk 00:00:06]} {[%emt 00:00:10]} 30. Rh4+
{[%clk 00:07:42]} {[%emt 00:00:03]} Kg5 {[%clk 00:00:10]} {[%emt 00:00:01]} 31.
f4+ {[%clk 00:07:44]} {[%emt 00:00:02]} Kf5 {[%clk 00:00:13]} {[%emt 00:00:02]}
32. Rh5+ {[%clk 00:07:46]} {[%emt 00:00:03]} Ke4 {[%clk 00:00:17]} {[%emt
00:00:02]} 33. Rxg7 {[%clk 00:07:48]} {[%emt 00:00:03]} Rxg7 {[%clk 00:00:20]}
{[%emt 00:00:01]} 34. Kf2 {[%clk 00:07:51]} {[%emt 00:00:01]} f5 {[%clk
00:00:16]} {[%emt 00:00:09]} 35. Rh6 {[%clk 00:07:53]} {[%emt 00:00:03]} Kd5
{[%clk 00:00:19]} {[%emt 00:00:02]} 36. Kf3 {[%clk 00:07:56]} {[%emt 00:00:01]}
Rd7 {[%clk 00:00:10]} {[%emt 00:00:14]} 37. Ke3 {[%clk 00:07:51]} {[%emt
00:00:10]} Rc7 {[%clk 00:00:14]} {[%emt 00:00:03]} 38. Kd3 {[%clk 00:07:53]}
{[%emt 00:00:03]} Rc4 {[%clk 00:00:16]} {[%emt 00:00:03]} 39. b3 {[%clk
00:07:57]} {[%emt 00:00:02]} Re4 {[%clk 00:00:19]} {[%emt 00:00:02]} 40. Rh8
{[%clk 00:07:56]} {[%emt 00:00:05]} Kc6 {[%clk 00:00:20]} {[%emt 00:00:04]} 41.
Rd8 {[%clk 00:07:57]} {[%emt 00:00:03]} Re1 {[%clk 00:00:11]} {[%emt 00:00:15]}
42. Re8 {[%clk 00:07:56]} {[%emt 00:00:06]} Kd7 {[%clk 00:00:10]} {[%emt
00:00:06]} 43. Ra8 {[%clk 00:07:57]} {[%emt 00:00:04]} Rb1 {[%clk 00:00:13]}
{[%emt 00:00:01]} 44. Kc2 {[%clk 00:08:01]} {[%emt 00:00:02]} Rg1 {[%clk
00:00:16]} {[%emt 00:00:02]} 45. Rxa6 {[%clk 00:08:04]} {[%emt 00:00:02]} Rxg3
{[%clk 00:00:19]} {[%emt 00:00:02]} 46. Rb6 {[%clk 00:08:04]} {[%emt 00:00:04]}
Rf3 {[%clk 00:00:22]} {[%emt 00:00:03]} 47. Rxb5 {[%clk 00:08:07]} {[%emt
00:00:02]} Rxf4 {[%clk 00:00:26]} {[%emt 00:00:01]} 48. Kd3 {[%clk 00:08:11]}
{[%emt 00:00:01]} Rf3+ {[%clk 00:00:16]} {[%emt 00:00:15]} 49. Kd2 {[%clk
00:08:15]} f4 {[%clk 00:00:20]} {[%emt 00:00:01]} 50. Re5 {[%clk 00:08:15]}
{[%emt 00:00:04]} Kd6 {[%clk 00:00:22]} {[%emt 00:00:02]} 51. Re4 {[%clk
00:08:19]} {[%emt 00:00:02]} Kd5 {[%clk 00:00:21]} {[%emt 00:00:07]} 52. Ra4
{[%clk 00:08:19]} {[%emt 00:00:05]} e5 {[%clk 00:00:24]} {[%emt 00:00:02]} 53.
Ra5+ {[%clk 00:08:22]} {[%emt 00:00:02]} Ke6 {[%clk 00:00:28]} {[%emt
00:00:01]} 54. a4 {[%clk 00:08:25]} {[%emt 00:00:02]} e4 {[%clk 00:00:18]}
{[%emt 00:00:14]} 55. Rh5 {[%clk 00:08:27]} {[%emt 00:00:03]} Rd3+ {[%clk
00:00:17]} {[%emt 00:00:06]} 56. Kc2 {[%clk 00:08:29]} {[%emt 00:00:02]} f3
{[%clk 00:00:09]} {[%emt 00:00:14]} 57. Rh2 {[%clk 00:08:29]} {[%emt 00:00:04]}
Re3 {[%clk 00:00:10]} {[%emt 00:00:05]} 58. Kd2 {[%clk 00:08:28]} {[%emt
00:00:05]} Rd3+ {[%clk 00:00:14]} {[%emt 00:00:01]} 59. Kc2 {[%clk 00:08:32]}
{[%emt 00:00:01]} Re3 {[%clk 00:00:18]} 60. a5 {[%clk 00:08:36]} {[%emt
00:00:02]} Kd6 {[%clk 00:00:12]} {[%emt 00:00:11]} 61. a6 {[%clk 00:08:39]}
{[%emt 00:00:02]} Kc6 {[%clk 00:00:17]} 62. b4 {[%clk 00:08:43]} {[%emt
00:00:02]} Kb6 {[%clk 00:00:18]} {[%emt 00:00:04]} 63. b5 {[%clk 00:08:47]} Rd3
{[%clk 00:00:19]} {[%emt 00:00:04]} 64. c4 {[%clk 00:08:48]} {[%emt 00:00:04]}
Rd4 {[%clk 00:00:23]} {[%emt 00:00:02]} 65. Kc3 {[%clk 00:08:51]} {[%emt
00:00:02]} Rd3+ {[%clk 00:00:27]} 66. Kc2 {[%clk 00:08:55]} {[%emt 00:00:01]}
Rd4 {[%clk 00:00:30]} {[%emt 00:00:02]} 67. Rh6+ {[%clk 00:08:59]} Ka7 {[%clk
00:00:30]} {[%emt 00:00:05]} 68. Rh7+ {[%clk 00:09:02]} {[%emt 00:00:02]} Kb6
{[%clk 00:00:34]} {[%emt 00:00:01]} 69. Rb7+ {[%clk 00:09:06]} {[%emt
00:00:01]} Kc5 {[%clk 00:00:06]} {[%emt 00:00:33]} 70. Rc7+ {[%clk 00:09:06]}
{[%emt 00:00:06]} Kb4 {[%clk 00:00:10]} {[%emt 00:00:01]} 71. b6 {[%clk
00:09:08]} {[%emt 00:00:03]} f2 {[%clk 00:00:06]} {[%emt 00:00:09]} 72. b7
{[%clk 00:09:10]} {[%emt 00:00:03]} f1=Q {[%clk 00:00:07]} {[%emt 00:00:03]} 73.
b8=Q+ {[%clk 00:09:12]} {[%emt 00:00:03]} Ka4 {[%clk 00:00:07]} {[%emt
00:00:06]} 74. Qb3+ {[%clk 00:09:14]} {[%emt 00:00:03]} Ka5 {[%clk 00:00:11]}
{[%emt 00:00:01]} 75. Rc5+ {[%clk 00:09:18]} Kxa6 {[%clk 00:00:14]} {[%emt
00:00:02]} 76. Qb5+ {[%clk 00:09:21]} Ka7 {[%clk 00:00:17]} {[%emt 00:00:01]}
77. Rc7+ {[%clk 00:09:25]} {[%emt 00:00:02]} Ka8 {[%clk 00:00:20]} {[%emt
00:00:02]} 78. Qb7# {[%clk 00:09:29]} 1-0

[Event "Ruzomberok Closed 2020 - 3. turnaj"]
[Site "Ruzomberok, Slovakia"]
[Date "2020.09.05"]
[Round "1.6"]
[White "Gollner, Martin"]
[Black "Gasper, Peter"]
[Result "1-0"]
[TimeControl "10m + 5s"]
[WhiteElo "1123"]
[BlackElo "1650"]

1. e4 {[%clk 00:10:07]} {[%emt 00:00:02]} c5 {[%clk 00:10:06]} {[%emt
00:00:04]} 2. Nf3 {[%clk 00:10:11]} {[%emt 00:00:02]} Nc6 {[%clk 00:10:08]}
{[%emt 00:00:03]} 3. d4 {[%clk 00:10:14]} {[%emt 00:00:01]} cxd4 {[%clk
00:10:11]} {[%emt 00:00:02]} 4. Nxd4 {[%clk 00:10:18]} {[%emt 00:00:02]} e5
{[%clk 00:10:16]} {[%emt 00:00:01]} 5. Nf3 {[%clk 00:10:21]} {[%emt 00:00:02]}
d6 {[%clk 00:10:20]} {[%emt 00:00:01]} 6. Nc3 {[%clk 00:10:09]} {[%emt
00:00:17]} Nf6 {[%clk 00:10:21]} {[%emt 00:00:03]} 7. Bg5 {[%clk 00:09:14]}
{[%emt 00:00:59]} Be7 {[%clk 00:10:12]} {[%emt 00:00:15]} 8. Qd2 {[%clk
00:08:59]} {[%emt 00:00:20]} h6 {[%clk 00:09:49]} {[%emt 00:00:28]} 9. Bh4
{[%clk 00:07:45]} {[%emt 00:01:19]} g5 {[%clk 00:09:46]} {[%emt 00:00:08]} 10.
Bg3 {[%clk 00:07:46]} {[%emt 00:00:04]} a6 {[%clk 00:08:51]} {[%emt 00:01:01]}
11. O-O-O {[%clk 00:07:36]} {[%emt 00:00:15]} b5 {[%clk 00:08:13]} {[%emt
00:00:42]} 12. Qe3 {[%clk 00:06:34]} {[%emt 00:01:07]} Qc7 {[%clk 00:07:46]}
{[%emt 00:00:26]} 13. Bd3 {[%clk 00:04:51]} {[%emt 00:01:54]} Qa7 {[%clk
00:07:38]} {[%emt 00:00:13]} 14. Qxa7 {[%clk 00:04:43]} {[%emt 00:00:12]} Rxa7
{[%clk 00:07:41]} {[%emt 00:00:02]} 15. h4 {[%clk 00:04:32]} {[%emt 00:00:16]}
g4 {[%clk 00:07:45]} {[%emt 00:00:01]} 16. Nd2 {[%clk 00:04:28]} {[%emt
00:00:10]} h5 {[%clk 00:07:48]} {[%emt 00:00:02]} 17. f3 {[%clk 00:04:19]}
{[%emt 00:00:14]} Bb7 {[%clk 00:07:50]} {[%emt 00:00:03]} 18. Nb3 {[%clk
00:03:55]} {[%emt 00:00:29]} Ba8 {[%clk 00:05:39]} {[%emt 00:02:16]} 19. Bf2
{[%clk 00:03:08]} {[%emt 00:00:52]} Rd7 {[%clk 00:05:35]} {[%emt 00:00:09]} 20.
Rd2 {[%clk 00:02:22]} {[%emt 00:00:51]} Rg8 {[%clk 00:05:39]} {[%emt 00:00:01]}
21. Rhd1 {[%clk 00:02:09]} {[%emt 00:00:18]} gxf3 {[%clk 00:04:06]} {[%emt
00:01:38]} 22. gxf3 {[%clk 00:02:12]} {[%emt 00:00:02]} Rb7 {[%clk 00:03:21]}
{[%emt 00:00:50]} 23. Rg1 {[%clk 00:02:01]} {[%emt 00:00:17]} Rxg1+ {[%clk
00:03:23]} {[%emt 00:00:03]} 24. Bxg1 {[%clk 00:02:05]} {[%emt 00:00:01]} Rb8
{[%clk 00:02:57]} {[%emt 00:00:31]} 25. Rg2 {[%clk 00:02:01]} {[%emt 00:00:09]}
Bf8 {[%clk 00:03:00]} {[%emt 00:00:02]} 26. Be3 {[%clk 00:01:52]} {[%emt
00:00:14]} Ke7 {[%clk 00:03:00]} {[%emt 00:00:05]} 27. Bg5 {[%clk 00:01:49]}
{[%emt 00:00:08]} Ke6 {[%clk 00:03:03]} {[%emt 00:00:01]} 28. Bxf6 {[%clk
00:01:41]} {[%emt 00:00:14]} Kxf6 {[%clk 00:03:07]} {[%emt 00:00:02]} 29. Nd5+
{[%clk 00:01:45]} {[%emt 00:00:01]} Ke6 {[%clk 00:03:03]} {[%emt 00:00:08]} 30.
f4 {[%clk 00:01:36]} {[%emt 00:00:14]} Nd4 {[%clk 00:03:02]} {[%emt 00:00:06]}
31. f5+ {[%clk 00:01:21]} {[%emt 00:00:20]} Kd7 {[%clk 00:02:57]} {[%emt
00:00:10]} 32. Nxd4 {[%clk 00:01:24]} {[%emt 00:00:02]} exd4 {[%clk 00:02:59]}
{[%emt 00:00:02]} 33. Nf6+ {[%clk 00:01:28]} {[%emt 00:00:01]} Kc7 {[%clk
00:02:45]} {[%emt 00:00:19]} 34. Nxh5 {[%clk 00:01:30]} {[%emt 00:00:03]} Bh6+
{[%clk 00:02:48]} {[%emt 00:00:02]} 35. Kb1 {[%clk 00:01:25]} {[%emt 00:00:11]}
Re8 {[%clk 00:02:50]} {[%emt 00:00:02]} 36. Nf6 {[%clk 00:01:21]} {[%emt
00:00:09]} Re5 {[%clk 00:02:08]} {[%emt 00:00:47]} 37. b3 {[%clk 00:01:16]}
{[%emt 00:00:11]} Be3 {[%clk 00:01:53]} {[%emt 00:00:20]} 38. Rg7 {[%clk
00:01:11]} {[%emt 00:00:10]} Rc5 {[%clk 00:01:30]} {[%emt 00:00:22]} 39. Rxf7+
{[%clk 00:01:09]} {[%emt 00:00:12]} Kb6 {[%clk 00:01:24]} {[%emt 00:00:11]} 40.
Nd7+ {[%clk 00:01:12]} {[%emt 00:00:02]} Ka5 {[%clk 00:01:26]} {[%emt
00:00:04]} 41. Nxc5 {[%clk 00:01:16]} {[%emt 00:00:01]} dxc5 {[%clk 00:01:30]}
42. e5 {[%clk 00:01:03]} {[%emt 00:00:18]} c4 {[%clk 00:01:33]} {[%emt
00:00:01]} 43. bxc4 {[%clk 00:01:05]} {[%emt 00:00:03]} bxc4 {[%clk 00:01:37]}
{[%emt 00:00:01]} 44. Bxc4 {[%clk 00:01:00]} {[%emt 00:00:10]} Be4 {[%clk
00:01:36]} {[%emt 00:00:05]} 45. Kb2 {[%clk 00:00:52]} {[%emt 00:00:14]} Bd2
{[%clk 00:01:24]} {[%emt 00:00:17]} 46. Kb3 {[%clk 00:00:44]} {[%emt 00:00:14]}
Bc3 {[%clk 00:01:00]} {[%emt 00:00:28]} 47. Ra7 {[%clk 00:00:34]} {[%emt
00:00:16]} Kb6 {[%clk 00:00:57]} {[%emt 00:00:07]} 48. Rxa6+ {[%clk 00:00:38]}
{[%emt 00:00:01]} Kc5 {[%clk 00:00:59]} {[%emt 00:00:03]} 49. f6 {[%clk
00:00:41]} {[%emt 00:00:02]} Bd2 {[%clk 00:00:41]} {[%emt 00:00:23]} 50. f7
{[%clk 00:00:41]} {[%emt 00:00:05]} Bh6 {[%clk 00:00:44]} {[%emt 00:00:02]} 51.
Rxh6 {[%clk 00:00:45]} {[%emt 00:00:01]} 1-0

[Event "Ruzomberok Closed 2020 - 3. turnaj"]
[Site "Ruzomberok, Slovakia"]
[Date "2020.09.05"]
[Round "1.7"]
[White "Hajtmansky, Milan"]
[Black "Novak, Michal"]
[Result "1-0"]
[TimeControl "10m + 5s"]
[WhiteElo "1590"]
[BlackElo "1096"]

1. e4 {[%clk 00:09:10]} {[%emt 00:00:59]} e5 {[%clk 00:09:59]} {[%emt
00:00:12]} 2. f4 {[%clk 00:09:14]} {[%emt 00:00:01]} exf4 {[%clk 00:09:58]}
{[%emt 00:00:06]} 3. Nf3 {[%clk 00:09:17]} {[%emt 00:00:01]} Nc6 {[%emt
00:00:10]} 4. d4 {[%clk 00:09:20]} d5 {[%clk 00:09:49]} {[%emt 00:00:10]} 5. e5
{[%clk 00:09:11]} {[%emt 00:00:15]} Bg4 {[%clk 00:09:43]} {[%emt 00:00:10]} 6.
Bb5 {[%clk 00:09:00]} {[%emt 00:00:16]} Bxf3 {[%clk 00:09:26]} {[%emt
00:00:22]} 7. Qxf3 {[%clk 00:08:02]} {[%emt 00:00:10]} Qh4+ {[%clk 00:09:31]} 8.
g3 {[%clk 00:07:44]} {[%emt 00:01:16]} fxg3 {[%clk 00:09:28]} {[%emt 00:00:08]}
9. hxg3 {[%clk 00:06:55]} {[%emt 00:00:24]} Qxd4 {[%clk 00:09:32]} 10. Bxc6+
{[%clk 00:06:44]} {[%emt 00:00:39]} bxc6 {[%clk 00:09:37]} 11. Nc3 {[%clk
00:06:06]} {[%emt 00:00:49]} Bb4 {[%clk 00:09:38]} {[%emt 00:00:05]} 12. Bd2
{[%clk 00:05:58]} {[%emt 00:00:12]} Qxe5+ {[%clk 00:09:10]} {[%emt 00:00:34]}
13. Qe2 {[%clk 00:04:59]} {[%emt 00:00:36]} Qxe2+ {[%clk 00:09:15]} 14. Nxe2
{[%clk 00:05:02]} {[%emt 00:00:29]} Bxd2+ {[%clk 00:08:59]} {[%emt 00:00:22]}
15. Kxd2 {[%clk 00:05:06]} {[%emt 00:00:01]} Ne7 {[%emt 00:00:11]} 16. Rhf1
{[%emt 00:00:06]} Rb8 {[%clk 00:08:19]} {[%emt 00:00:27]} 17. b3 {[%clk
00:05:09]} {[%emt 00:00:01]} c5 {[%clk 00:08:19]} {[%emt 00:00:05]} 18. Rae1
{[%clk 00:05:12]} {[%emt 00:00:02]} c6 {[%clk 00:07:55]} {[%emt 00:00:30]} 19.
Nf4 {[%clk 00:05:13]} {[%emt 00:00:04]} f6 {[%clk 00:07:38]} {[%emt 00:00:22]}
20. Ne6 {[%clk 00:05:08]} {[%emt 00:00:10]} Kf7 {[%clk 00:07:02]} {[%emt
00:00:41]} 21. Nxc5 {[%clk 00:05:06]} {[%emt 00:00:07]} Ng6 {[%clk 00:06:40]}
{[%emt 00:00:28]} 22. Re2 {[%clk 00:05:03]} {[%emt 00:00:08]} Ne5 {[%clk
00:06:41]} {[%emt 00:00:04]} 23. Rxe5 {[%clk 00:04:59]} {[%emt 00:00:08]} Rb4
{[%clk 00:05:31]} {[%emt 00:01:16]} 24. Re3 {[%clk 00:04:18]} {[%emt 00:00:11]}
Rg4 {[%clk 00:05:05]} {[%emt 00:01:06]} 25. Rfe1 {[%clk 00:04:21]} {[%emt
00:00:02]} Kg6 {[%clk 00:04:51]} {[%emt 00:00:19]} 26. Ne6 {[%clk 00:04:13]}
{[%emt 00:00:13]} a5 {[%clk 00:04:38]} {[%emt 00:00:18]} 27. Nf4+ {[%clk
00:04:11]} {[%emt 00:00:06]} Kh6 {[%clk 00:04:16]} {[%emt 00:00:27]} 28. Rh1+
{[%clk 00:04:14]} {[%emt 00:00:03]} Kg5 {[%clk 00:04:17]} {[%emt 00:00:04]} 29.
Rh5# {[%clk 00:04:02]} {[%emt 00:00:17]} 1-0

[Event "Ruzomberok Closed 2020 - 3. turnaj"]
[Site "Ruzomberok, Slovakia"]
[Date "2020.09.05"]
[Round "1.8"]
[White "Jurgos, Samuel"]
[Black "Konkolova, Nikola"]
[Result "1/2-1/2"]
[TimeControl "10m + 5s"]
[WhiteElo "1073"]
[BlackElo "1483"]

1. d4 {[%clk 00:10:08]} {[%emt 00:00:02]} e6 {[%clk 00:10:08]} {[%emt
00:00:02]} 2. Nf3 {[%clk 00:10:03]} {[%emt 00:00:09]} c6 {[%clk 00:10:11]}
{[%emt 00:00:02]} 3. e4 {[%clk 00:09:46]} {[%emt 00:00:22]} d5 {[%clk
00:10:13]} {[%emt 00:00:03]} 4. e5 {[%clk 00:09:45]} {[%emt 00:00:07]} c5
{[%clk 00:10:16]} {[%emt 00:00:02]} 5. Bb5+ {[%clk 00:09:44]} {[%emt 00:00:05]}
Bd7 {[%clk 00:10:15]} {[%emt 00:00:05]} 6. Qe2 {[%clk 00:09:33]} {[%emt
00:00:16]} Qa5+ {[%clk 00:10:04]} {[%emt 00:00:16]} 7. Nc3 {[%clk 00:09:33]}
{[%emt 00:00:05]} cxd4 {[%clk 00:09:57]} {[%emt 00:00:11]} 8. Nxd4 {[%clk
00:09:27]} {[%emt 00:00:12]} Bb4 {[%clk 00:09:46]} {[%emt 00:00:16]} 9. Bd2
{[%clk 00:08:35]} {[%emt 00:00:58]} a6 {[%clk 00:09:23]} {[%emt 00:00:29]} 10.
Nb3 {[%clk 00:07:31]} {[%emt 00:01:08]} Bxb5 {[%clk 00:08:24]} {[%emt
00:01:02]} 11. Nxb5 {[%clk 00:06:45]} {[%emt 00:00:52]} Bxd2+ {[%clk 00:07:59]}
{[%emt 00:00:29]} 12. Qxd2 {[%clk 00:06:21]} {[%emt 00:00:29]} Qxd2+ {[%clk
00:07:57]} {[%emt 00:00:06]} 13. Kxd2 {[%clk 00:06:11]} {[%emt 00:00:16]} axb5
{[%clk 00:07:59]} {[%emt 00:00:04]} 14. Nc5 {[%clk 00:06:12]} {[%emt 00:00:03]}
b6 {[%clk 00:07:37]} {[%emt 00:00:27]} 15. Nb7 {[%clk 00:06:10]} {[%emt
00:00:06]} Nd7 {[%clk 00:07:10]} {[%emt 00:00:33]} 16. f4 {[%clk 00:06:04]}
{[%emt 00:00:11]} Ra4 {[%clk 00:06:51]} {[%emt 00:00:22]} 17. Rhf1 {[%clk
00:05:44]} {[%emt 00:00:26]} Ne7 {[%clk 00:06:25]} {[%emt 00:00:31]} 18. Nd6+
{[%clk 00:05:47]} {[%emt 00:00:03]} Kf8 {[%clk 00:06:29]} {[%emt 00:00:01]} 19.
b3 {[%clk 00:05:24]} {[%emt 00:00:27]} Ra7 {[%clk 00:06:09]} {[%emt 00:00:24]}
20. Nxb5 {[%clk 00:05:20]} {[%emt 00:00:11]} Ra8 {[%clk 00:06:00]} {[%emt
00:00:12]} 21. g4 {[%clk 00:04:58]} {[%emt 00:00:29]} g6 {[%clk 00:05:37]}
{[%emt 00:00:27]} 22. h4 {[%clk 00:04:47]} {[%emt 00:00:16]} Nc5 {[%clk
00:05:26]} {[%emt 00:00:16]} 23. Nd6 {[%clk 00:04:28]} {[%emt 00:00:25]} Kg7
{[%clk 00:05:00]} {[%emt 00:00:31]} 24. h5 {[%clk 00:02:40]} {[%emt 00:01:54]}
f5 {[%clk 00:04:10]} {[%emt 00:00:54]} 25. exf6+ {[%clk 00:02:29]} {[%emt
00:00:16]} Kxf6 {[%clk 00:04:11]} {[%emt 00:00:03]} 26. g5+ {[%clk 00:02:31]}
{[%emt 00:00:03]} Kg7 {[%clk 00:04:10]} {[%emt 00:00:06]} 27. h6+ {[%clk
00:02:31]} {[%emt 00:00:06]} Kg8 {[%clk 00:04:10]} {[%emt 00:00:04]} 28. b4
{[%clk 00:02:09]} {[%emt 00:00:28]} Ne4+ {[%clk 00:03:52]} {[%emt 00:00:23]} 29.
Nxe4 {[%clk 00:02:10]} {[%emt 00:00:03]} dxe4 {[%clk 00:03:55]} {[%emt
00:00:02]} 30. Ke3 {[%clk 00:02:13]} {[%emt 00:00:02]} Nf5+ {[%clk 00:03:54]}
{[%emt 00:00:06]} 31. Kxe4 {[%clk 00:02:15]} {[%emt 00:00:03]} Ng3+ {[%clk
00:03:57]} {[%emt 00:00:02]} 32. Ke5 {[%clk 00:02:15]} {[%emt 00:00:05]} Nxf1
{[%clk 00:03:59]} {[%emt 00:00:02]} 33. Rxf1 {[%clk 00:02:15]} {[%emt
00:00:05]} Rxa2 {[%clk 00:03:59]} {[%emt 00:00:06]} 34. Kxe6 {[%clk 00:02:14]}
{[%emt 00:00:07]} Rxc2 {[%clk 00:03:56]} {[%emt 00:00:07]} 35. f5 {[%clk
00:02:15]} {[%emt 00:00:04]} gxf5 {[%clk 00:03:41]} {[%emt 00:00:21]} 36. Rxf5
{[%clk 00:02:17]} {[%emt 00:00:03]} Rc6+ {[%clk 00:03:29]} {[%emt 00:00:17]} 37.
Ke7 {[%clk 00:02:03]} {[%emt 00:00:18]} Rc8 {[%clk 00:03:22]} {[%emt 00:00:13]}
38. Rb5 {[%clk 00:01:43]} {[%emt 00:00:24]} Rc7+ {[%clk 00:03:16]} {[%emt
00:00:12]} 39. Kd6 {[%clk 00:01:34]} {[%emt 00:00:14]} Rf7 {[%clk 00:03:13]}
{[%emt 00:00:07]} 40. Rxb6 {[%clk 00:01:33]} {[%emt 00:00:07]} Rf5 {[%clk
00:03:13]} {[%emt 00:00:05]} 41. Ke6 {[%clk 00:01:32]} {[%emt 00:00:06]} Rf8
{[%clk 00:03:12]} {[%emt 00:00:06]} 42. Rb7 {[%clk 00:01:31]} {[%emt 00:00:07]}
Re8+ {[%clk 00:03:05]} {[%emt 00:00:11]} 43. Kf6 {[%clk 00:01:00]} {[%emt
00:00:35]} Rf8+ {[%clk 00:03:02]} {[%emt 00:00:10]} 44. Ke6 {[%clk 00:01:01]}
{[%emt 00:00:04]} Re8+ {[%clk 00:03:05]} {[%emt 00:00:02]} 1/2-1/2

[ePGN "0.1;DGT LiveChess/2.2.5"]